bitfinex-derivatives/quotes_ETHF0:USTF0_20250212
["timestamp","ask_amount","ask_price","bid_price","bid_amount"]
[1739319645359,0.00575131,2605.1,2604.7,3.2078]
[1739319645563,0.00575131,2605.1,2604.8,0.41074834]
[1739319645760,0.00575131,2605.1,2604.9,0.41075233]
[1739319645967,0.00575131,2605.1,2604.7,3.2078]
[1739319646167,0.00575131,2605.1,2604.8,0.41075355]
[1739319646369,0.00575131,2605.1,2604.9,0.41075355]
[1739319646568,0.00575131,2605.1,2604.7,3.2078]
[1739319646764,0.00575131,2605.1,2604.8,0.41073742]
[1739319646965,0.00575131,2605.1,2604.9,0.41073742]
[1739319647165,0.00575131,2605.1,2604.7,3.2078]
[1739319647366,0.00575131,2605.1,2604.8,0.41073992]
[1739319647667,0.00575131,2605.1,2604.9,0.41073992]
[1739319647873,0.00575131,2605.1,2604.7,3.2078]
[1739319648078,4.20107522,2605.0,2604.8,0.41076178]
[1739319648274,4.77337522,2605.0,2604.7,3.2078]
[1739319652278,5.90217522,2605.0,2604.6,40.8]
[1739319652478,5.90217522,2605.0,2604.7,0.4108944]
[1739319652670,5.90217522,2605.0,2604.6,40.8]
[1739319652878,5.90217522,2605.0,2604.7,0.41089414]
[1739319653172,5.90217522,2605.0,2604.6,40.8]
[1739319653371,5.90217522,2605.0,2604.7,0.41089228]
[1739319653572,5.90217522,2605.0,2604.6,40.8]
[1739319653777,5.90217522,2605.0,2604.7,0.41095893]
[1739319654079,5.90217522,2605.0,2604.6,40.8]
[1739319657681,3.2078,2604.8,2604.6,40.8]
[1739319657875,1.73,2604.7,2604.3,3.2078]
[1739319658179,1.73,2604.7,2604.4,0.41146908]
[1739319658180,5.86743462,2604.7,2604.4,0.41146908]
[1739319658479,5.86743462,2604.7,2604.5,40.8]
[1739319659278,5.86743462,2604.7,2604.3,3.2078]
[1739319659680,5.86743462,2604.7,2604.4,40.8]
[1739319660173,6.63533462,2604.7,2604.3,3.2078]
[1739319660373,4.04900622,2604.6,2603.9,3.2078]
[1739319660575,3.2078,2604.5,2603.9,3.2078]
[1739319660883,3.2078,2604.5,2602.9,3.2078]
[1739319660884,4.04900622,2604.0,2602.9,3.2078]
[1739319661076,7.25680622,2603.7,2603.0,0.46539172]
[1739319661274,7.25680622,2603.7,2603.1,40.8]
[1739319661481,4.2252254,2603.6,2603.1,40.8]
[1739319662176,3.16720561,2603.4,2603.1,40.8]
[1739319662382,1.73,2603.3,2603.1,40.8]
[1739319662578,5.90854748,2603.3,2603.1,40.8]
[1739319662779,9.07575309,2603.3,2603.1,40.8]
[1739319663986,9.07575309,2603.3,2602.9,1.175]
[1739319664187,3.16720561,2603.0,2602.9,1.175]
[1739319664383,3.16720561,2603.0,2602.9,41.975]
[1739319665985,7.58667395,2603.0,2602.4,3.2078]
[1739319666282,3.2078,2602.5,2602.2,0.6074]
[1739319666481,3.16720561,2602.4,2602.2,0.6074]
[1739319666987,7.61559549,2602.4,2602.2,0.6074]
[1739319667489,7.61559549,2602.4,2601.9,0.5836]
[1739319667786,3.16720561,2602.1,2601.9,0.5836]
[1739319668184,4.04113468,2602.0,2601.9,0.5836]
[1739319668582,4.04113468,2602.0,2601.9,41.3836]
[1739319668788,4.03483143,2602.0,2601.9,41.3836]
[1739319668991,4.03483143,2602.0,2601.9,40.8]
[1739319669387,13.20203704,2602.0,2601.2,3.2078]
[1739319669690,3.16720561,2601.3,2601.2,3.2078]
[1739319669891,4.89820561,2601.3,2601.2,44.0078]
[1739319670187,8.10600561,2601.3,2601.2,40.8]
[1739319670390,12.49216894,2601.3,2600.8,1.1857]
[1739319670685,3.16720561,2601.0,2600.8,1.1857]
[1739319670887,3.16720561,2601.0,2600.9,40.8]
[1739319671282,3.16720561,2601.0,2600.4,0.6018]
[1739319671283,10.49926399,2601.0,2600.4,0.6018]
[1739319671593,4.06305819,2600.8,2600.4,0.6018]
[1739319671781,1.731,2600.7,2600.5,40.8]
[1739319671982,9.06305838,2600.7,2600.0,0.10442657]
[1739319672287,7.27085819,2600.2,2599.0,3.2078]
[1739319672488,3.2078,2599.9,2599.3,3.2078]
[1739319672688,4.15060978,2600.1,2599.6,3.2078]
[1739319672986,0.00576269,2599.9,2599.6,4.06305819]
[1739319673293,3.2078,2601.1,2599.9,3.2078]
[1739319673491,4.06305819,2601.3,2600.5,3.2078]
[1739319673492,1.731,2600.9,2600.5,3.2078]
[1739319673683,6.09925375,2600.9,2600.5,3.2078]
[1739319674499,9.30705375,2600.9,2600.4,0.00576269]
[1739319675191,3.2078,2600.6,2600.4,0.00576269]
[1739319675689,4.09495877,2600.5,2600.4,0.00576269]
[1739319676894,3.2078,2600.9,2600.4,0.00576269]
[1739319677188,4.06882088,2601.0,2600.5,3.2078]
[1739319677189,1.74776269,2601.0,2600.5,3.2078]
[1739319677493,1.74776269,2601.0,2600.6,0.599]
[1739319678589,1.74776269,2601.0,2600.7,40.8]
[1739319678998,1.74776269,2601.0,2600.8,3.2078]
[1739319678999,0.00576269,2601.0,2600.8,3.2078]
[1739319680086,0.5683,2601.8,2600.8,9.2078]
[1739319680087,1.744,2601.7,2600.8,9.2078]
[1739319680287,1.744,2601.7,2601.2,3.2078]
[1739319680795,3.2078,2601.8,2601.2,3.2078]
[1739319681198,4.06305819,2601.6,2600.8,3.2078]
[1739319681498,3.2078,2601.5,2600.8,3.2078]
[1739319681792,7.46502247,2601.5,2600.8,3.2078]
[1739319682894,3.2078,2601.1,2600.7,40.8]
[1739319687202,1.745,2601.7,2600.9,3.2078]
[1739319687499,5.79152133,2601.7,2601.2,3.2078]
[1739319688094,5.79152133,2601.7,2600.7,40.8]
[1739319688095,4.06305819,2601.3,2600.7,40.8]
[1739319688496,4.06305819,2601.0,2600.7,40.8]
[1739319688695,5.81105819,2601.0,2600.7,40.8]
[1739319688895,0.15469625,2600.9,2600.7,40.8]
[1739319690199,3.2078,2600.8,2600.4,0.00576269]
[1739319690496,4.06305819,2600.7,2600.4,0.00576269]
[1739319690700,8.28843914,2600.7,2600.4,0.00576269]
[1739319691293,3.2078,2600.5,2600.4,0.00576269]
[1739319691700,7.32526823,2600.5,2600.4,0.00576269]
[1739319691901,3.2078,2600.5,2600.4,0.00576269]
[1739319692491,7.4343261,2600.5,2600.4,0.00576269]
[1739319694099,0.76925,2600.1,2599.3,0.5975]
[1739319694303,7.27085819,2599.6,2598.9,3.2078]
[1739319694501,9.02285819,2599.6,2599.0,40.8]
[1739319694700,4.18291749,2599.5,2599.0,40.8]
[1739319695205,4.18868018,2599.5,2599.0,40.80576269]
[1739319698100,4.18868018,2599.5,2599.0,44.01356269]
[1739319698301,0.00576269,2599.5,2599.3,3.2078]
[1739319699303,3.2078,2600.0,2599.4,0.566]
[1739319699505,3.2078,2600.0,2599.6,3.2078]
[1739319699506,4.2078,2600.0,2599.6,3.2078]
[1739319700202,8.40106882,2599.9,2599.7,40.8]
[1739319700604,8.40106882,2599.9,2599.0,3.21356269]
[1739319700912,4.06305819,2599.6,2599.0,3.21356269]
[1739319701106,4.06305819,2599.3,2599.0,44.01356269]
[1739319701517,3.98037759,2599.2,2599.0,44.01356269]
[1739319701805,3.98037759,2599.2,2599.0,40.80576269]
[1739319702311,3.98037759,2599.2,2599.0,0.00576269]
[1739319702712,3.98037759,2599.2,2599.0,40.80576269]
[1739319703211,3.98037759,2599.2,2599.0,0.00576269]
[1739319704604,3.98037759,2599.2,2598.8,40.8]
[1739319704605,3.2078,2599.1,2598.8,40.8]
[1739319704809,4.06305819,2598.9,2598.2,3.2078]
[1739319705006,3.2078,2598.7,2598.2,3.2078]
[1739319705415,4.25188333,2598.6,2598.2,3.2078]
[1739319706102,0.00576269,2598.7,2598.2,3.2078]
[1739319706103,4.25764602,2598.7,2598.2,3.2078]
[1739319706306,0.00576269,2598.7,2598.2,3.2078]
[1739319706708,4.07222951,2598.6,2598.2,3.2078]
[1739319707710,4.06305819,2598.5,2598.1,0.00576269]
[1739319708112,4.43698741,2598.4,2598.1,0.00576269]
[1739319708611,3.2078,2598.3,2598.2,40.8]
[1739319709107,7.58521281,2598.3,2598.2,40.8]
[1739319709312,7.58521281,2598.3,2598.1,0.00576269]
[1739319709512,5.81205819,2598.2,2598.1,0.00576269]
[1739319709908,5.99426821,2598.2,2598.1,0.00576269]
[1739319710309,4.24626821,2598.2,2598.1,0.00576269]
[1739319710615,1.75,2598.6,2598.1,40.80576269]
[1739319711011,6.05305701,2598.6,2598.1,40.80576269]
[1739319711815,1.75,2598.6,2598.3,3.2078]
[1739319712412,1.749,2598.8,2598.3,3.2078]
[1739319712613,0.00576269,2598.7,2598.6,3.2078]
[1739319713116,0.00576269,2598.7,2598.3,3.2078]
[1739319713325,4.06305819,2598.5,2598.1,40.80576269]
[1739319713813,4.16691126,2598.4,2598.1,40.80576269]
[1739319714615,4.76121126,2598.4,2598.1,0.00576269]
[1739319715816,3.2078,2598.6,2598.1,0.00576269]
[1739319716010,3.2078,2598.6,2598.1,0.57906269]
[1739319716213,3.2078,2598.6,2598.1,1.19096269]
[1739319716820,0.00576269,2598.7,2598.1,1.19096269]
[1739319717017,1.75876269,2598.7,2598.3,3.2078]
[1739319717523,1.75876269,2598.7,2598.6,3.2078]
[1739319717918,7.42129302,2598.7,2598.1,0.00576269]
[1739319718118,4.21349302,2598.7,2598.1,0.57906269]
[1739319718315,4.21349302,2598.7,2598.2,3.2078]
[1739319718521,0.00576269,2598.7,2598.2,3.2078]
[1739319719027,0.00576269,2598.7,2598.2,0.611]
[1739319720526,0.00576269,2598.7,2598.4,3.2078]
[1739319720828,0.00576269,2598.7,2598.1,3.78686269]
[1739319723329,0.00576269,2598.7,2598.4,3.2078]
[1739319723740,0.00576269,2598.7,2598.4,3.97752]
[1739319723938,0.00576269,2598.7,2598.4,3.2078]
[1739319724128,0.00576269,2598.7,2598.6,4.06305819]
[1739319724336,1.77,2599.9,2598.9,0.76957]
[1739319724539,1.77,2599.9,2599.4,3.2078]
[1739319724735,4.40410866,2599.9,2599.5,40.8]
[1739319724943,1.772,2600.1,2599.5,40.8]
[1739319725139,1.772,2600.1,2599.6,0.5919]
[1739319725435,1.77776269,2600.1,2599.6,0.59766269]
[1739319727136,0.00576269,2600.1,2600.0,3.2078]
[1739319727631,0.00576269,2600.1,2599.7,3.8097]
[1739319729233,0.00576269,2600.1,2600.0,3.2078]
[1739319730536,0.00576269,2600.1,2599.7,0.6019]
[1739319730537,0.00576269,2600.1,2599.7,3.8097]
[1739319731339,0.00576269,2600.1,2599.6,0.59766269]
[1739319732540,0.00576269,2600.1,2599.7,3.2078]
[1739319732840,0.00576269,2600.1,2600.0,3.2078]
[1739319733637,0.00576269,2600.1,2600.0,44.0078]
[1739319734440,0.5936,2601.1,2600.0,50.0078]
[1739319734643,0.5535,2601.4,2601.0,3.2078]
[1739319734839,1.77,2601.6,2601.0,3.2078]
[1739319735445,8.15132889,2601.5,2601.0,3.2078]
[1739319735636,4.06305819,2601.2,2601.0,0.00576269]
[1739319735844,1.1139,2601.1,2601.0,0.00576269]
[1739319736041,5.2021707,2601.1,2601.0,0.00576269]
[1739319736440,0.5604,2601.1,2601.0,0.00576269]
[1739319736845,7.03465819,2601.5,2601.0,0.00576269]
[1739319737348,6.45805819,2601.5,2601.0,0.00576269]
[1739319737748,3.21356269,2601.6,2601.0,3.21356269]
[1739319737943,0.00576269,2601.6,2601.5,3.2078]
[1739319738443,0.00576269,2601.6,2601.2,3.2078]
[1739319738650,0.00576269,2601.6,2601.5,40.8]
[1739319740143,0.00576269,2601.6,2601.2,3.2078]
[1739319740144,0.00576269,2601.6,2601.0,0.00576269]
[1739319740550,0.00576269,2601.6,2601.3,3.2078]
[1739319740741,0.00576269,2601.6,2601.4,0.5601]
[1739319741345,0.00576269,2601.6,2601.4,6.5601]
[1739319741653,1.0,2602.0,2601.4,6.5601]
[1739319741851,1.0,2602.0,2601.7,3.2078]
[1739319743948,3.2078,2601.9,2601.4,0.5601]
[1739319744149,13.17460815,2601.9,2601.0,0.00576269]
[1739319744346,4.06305819,2601.6,2601.0,0.00576269]
[1739319744553,3.2078,2601.4,2601.0,0.00576269]
[1739319744951,5.40951864,2601.5,2601.0,0.00576269]
[1739319745450,1.1565,2601.5,2601.0,0.00576269]
[1739319745657,3.2078,2601.3,2601.0,0.00576269]
[1739319745955,1.1565,2601.5,2601.0,0.00576269]
[1739319746471,4.02784707,2601.4,2601.0,0.00576269]
[1739319747056,1.1565,2601.5,2601.0,0.00576269]
[1739319747057,2.3741,2601.8,2601.0,0.00576269]
[1739319748056,4.34312352,2601.7,2601.0,0.00576269]
[1739319749357,1.0,2602.0,2601.4,3.2078]
[1739319750162,1.0,2602.0,2601.5,40.8]
[1739319750458,1.0,2602.0,2601.7,3.2078]
[1739319751257,1.0,2602.0,2601.7,8.03960819]
[1739319751458,4.9988,2602.7,2601.7,13.27085819]
[1739319751648,4.9988,2602.7,2602.1,3.2078]
[1739319751853,4.06305819,2602.5,2601.8,3.2078]
[1739319752158,0.5887,2602.4,2601.8,3.2078]
[1739319752551,0.59446269,2602.4,2601.8,3.2078]
[1739319753948,4.06305819,2602.2,2601.5,44.0078]
[1739319754148,4.06305819,2602.2,2601.5,40.8]
[1739319754361,3.2078,2602.0,2601.5,40.8]
[1739319754753,8.27138845,2601.9,2601.5,40.8]
[1739319754958,8.27138845,2601.9,2601.0,0.00576269]
[1739319754959,7.27085819,2601.6,2601.0,0.00576269]
[1739319755155,7.27085819,2601.3,2601.0,0.00576269]
[1739319755556,4.09156615,2601.2,2601.0,0.00576269]
[1739319756456,4.09156615,2601.2,2600.7,40.8]
[1739319756664,7.27085819,2600.9,2600.3,3.2078]
[1739319756959,1.791,2600.8,2600.3,3.2078]
[1739319757171,6.01826818,2600.8,2600.4,40.8]
[1739319758962,1.791,2600.8,2600.4,40.8]
[1739319760859,4.15319343,2600.7,2600.4,40.8]
[1739319761061,5.32819343,2600.7,2600.4,40.8]
[1739319761367,7.27085819,2600.6,2600.3,0.00576269]
[1739319761758,4.31055446,2600.5,2600.3,40.80576269]
[1739319763468,3.21356269,2600.9,2600.3,40.80576269]
[1739319764262,3.21356269,2600.9,2600.5,3.2078]
[1739319764563,0.00576269,2600.9,2600.5,3.2078]
[1739319765271,0.00576269,2600.9,2600.3,40.80576269]
[1739319765468,0.00576269,2600.9,2600.5,3.2078]
[1739319766470,0.00576269,2600.9,2600.3,40.80576269]
[1739319768069,0.00576269,2600.9,2600.6,3.2078]
[1739319768372,0.00576269,2600.9,2600.3,44.01356269]
[1739319768962,0.00576269,2600.9,2600.6,3.2078]
[1739319769167,0.00576269,2600.9,2600.7,1.1942]
[1739319769677,0.00576269,2600.9,2600.8,40.8]
[1739319774075,10.0828764,2600.9,2600.3,0.00576269]
[1739319774269,8.03995819,2600.6,2600.3,0.00576269]
[1739319774478,8.03995819,2600.6,2600.4,40.8]
[1739319774680,4.02011642,2600.5,2600.4,40.8]
[1739319774876,4.02011642,2600.5,2600.3,0.00576269]
[1739319775981,3.2078,2600.6,2600.3,0.00576269]
[1739319776283,4.0123295,2600.5,2600.3,0.00576269]
[1739319776984,7.27085819,2600.6,2600.3,0.00576269]
[1739319777478,3.2078,2600.6,2600.3,0.00576269]
[1739319777683,0.00576269,2600.9,2600.4,3.2078]
[1739319777881,0.00576269,2600.9,2600.4,3.7759]
[1739319778077,0.00576269,2600.9,2600.4,4.3727]
[1739319780278,0.00576269,2600.9,2600.7,3.2078]
[1739319780986,0.00576269,2600.9,2600.8,40.8]
[1739319782074,0.00576269,2600.9,2600.8,44.0078]
[1739319782281,0.00576269,2600.9,2600.8,40.8]
[1739319782674,0.00576269,2600.9,2600.8,44.0078]
[1739319785087,3.2078,2601.6,2600.8,50.0078]
[1739319785288,3.2078,2601.6,2601.2,3.2078]
[1739319785983,3.2078,2601.6,2600.9,3.2078]
[1739319786184,3.2078,2601.6,2601.2,3.2078]
[1739319786384,3.2078,2601.6,2601.3,0.5631]
[1739319788389,0.00576269,2601.7,2601.3,0.5631]
[1739319789283,0.00576269,2601.7,2601.2,3.2078]
[1739319789476,4.45014407,2601.6,2601.2,3.2078]
[1739319790588,4.06305819,2601.5,2601.2,3.2078]
[1739319790777,7.27085819,2601.5,2600.8,40.8]
[1739319790983,4.08534604,2601.4,2600.8,40.8]
[1739319791183,1.782,2601.3,2600.8,40.8]
[1739319791491,4.08534604,2601.2,2600.8,40.8]
[1739319791786,1.12836269,2601.7,2601.1,3.2078]
[1739319792385,4.19124759,2601.6,2600.8,44.0078]
[1739319792587,7.27085819,2601.5,2600.8,44.0078]
[1739319792983,4.43787744,2601.4,2600.8,44.0078]
[1739319793385,3.2078,2601.2,2600.8,44.0078]
[1739319793785,4.20186705,2601.1,2600.8,44.0078]
[1739319794693,1.1273,2601.0,2600.8,44.0078]
[1739319795086,4.46253961,2600.9,2600.8,44.0078]
[1739319795788,11.7333978,2600.9,2600.4,3.2078]
[1739319796086,11.7333978,2600.9,2600.3,0.00576269]
[1739319796087,4.06305819,2600.6,2600.3,0.00576269]
[1739319796292,9.05185819,2600.6,2600.4,40.8]
[1739319796493,4.79362267,2600.5,2599.5,3.2078]
[1739319796685,7.27085819,2600.3,2599.5,3.2078]
[1739319796891,0.565,2600.2,2599.5,3.2078]
[1739319797088,5.01248843,2600.2,2599.6,40.8]
[1739319797786,5.01825112,2600.2,2599.6,40.80576269]
[1739319798286,5.01825112,2600.2,2599.8,3.2078]
[1739319798287,0.00576269,2600.2,2599.8,3.2078]
[1739319799593,0.00576269,2600.2,2600.1,3.2078]
[1739319800388,1.2103,2601.1,2600.2,0.76921]
[1739319800591,1.2103,2601.1,2600.6,3.2078]
[1739319800793,5.84705819,2601.8,2600.9,3.2078]
[1739319800991,6.41265819,2601.8,2600.9,3.2078]
[1739319801188,10.74897233,2601.8,2600.9,3.2078]
[1739319801388,6.41265819,2601.8,2601.0,0.6104]
[1739319801585,6.41265819,2601.8,2601.4,3.2078]
[1739319801586,0.00576269,2601.6,2601.4,3.2078]
[1739319805698,0.00576269,2601.6,2601.5,40.8]
[1739319808099,0.00576269,2601.6,2601.1,0.00576269]
[1739319808492,0.00576269,2601.6,2601.3,3.2078]
[1739319808698,0.00576269,2601.6,2601.4,40.8]
[1739319811704,4.06305819,2601.5,2601.1,0.00576269]
[1739319812305,4.06305819,2601.5,2601.2,40.8]
[1739319813110,3.2078,2601.3,2601.2,40.8]
[1739319813303,4.27725991,2601.4,2601.2,40.8]
[1739319813509,4.06305819,2601.5,2601.2,40.8]
[1739319813909,4.44711713,2601.4,2601.2,40.8]
[1739319814305,3.21356269,2601.6,2601.2,40.8]
[1739319815209,0.00576269,2601.6,2601.4,3.2078]
[1739319815409,0.00576269,2601.6,2601.2,41.378]
[1739319816216,0.00576269,2601.6,2601.4,3.2078]
[1739319818814,0.00576269,2601.6,2601.2,41.378]
[1739319819612,3.2078,2601.5,2601.2,40.8]
[1739319820007,1.1584,2601.4,2601.2,40.8]
[1739319822120,4.43044796,2601.3,2601.2,40.8]
[1739319822813,4.43044796,2601.3,2601.1,0.00576269]
[1739319823013,7.27085819,2601.2,2601.1,0.00576269]
[1739319823519,7.27085819,2601.2,2601.1,40.80576269]
[1739319823520,11.47812817,2601.2,2601.1,40.80576269]
[1739319823729,11.47812817,2601.2,2600.4,3.2078]
[1739319824108,7.27085819,2600.9,2600.5,40.8]
[1739319824516,0.5952,2600.8,2600.5,40.8]
[1739319830528,4.88967039,2600.7,2600.5,40.8]
[1739319835217,8.03995819,2600.6,2599.7,3.2078]
[1739319835423,7.27085819,2600.3,2599.7,3.2078]
[1739319835617,7.27085819,2600.3,2599.8,40.8]
[1739319835817,4.98362548,2600.2,2599.8,40.8]
[1739319836732,3.2078,2600.0,2599.8,40.8]
[1739319837020,7.27085819,2600.0,2599.8,40.8]
[1739319837218,4.06339894,2599.9,2599.8,40.8]
[1739319837429,4.62589894,2599.9,2599.8,40.8]
[1739319838321,10.62589894,2599.9,2599.8,40.8]
[1739319838526,10.6918247,2599.9,2599.7,0.00576269]
[1739319838728,1.774,2599.8,2599.7,0.00576269]
[1739319839328,4.04409865,2599.8,2599.7,0.00576269]
[1739319839628,9.04485819,2600.0,2599.7,40.80576269]
[1739319839922,3.2078,2600.0,2599.7,40.80576269]
[1739319840222,0.00576269,2600.3,2599.8,3.2078]
[1739319840531,0.00576269,2600.3,2599.9,0.5784]
[1739319841626,4.04425688,2600.2,2599.9,0.5784]
[1739319842220,4.04425688,2600.2,2599.7,40.80576269]
[1739319842221,7.27085819,2600.0,2599.7,40.80576269]
[1739319842427,2.3788,2599.9,2599.7,40.80576269]
[1739319842628,6.46787877,2599.9,2599.7,40.80576269]
[1739319843129,0.5775,2599.8,2599.7,40.80576269]
[1739319843330,0.5775,2599.8,2599.7,0.00576269]
[1739319843528,4.70223963,2599.8,2599.7,0.00576269]
[1739319845024,4.12473963,2599.8,2599.7,0.00576269]
[1739319845228,0.00576269,2600.3,2599.7,3.21356269]
[1739319845928,0.00576269,2600.3,2600.1,40.8]
[1739319846430,0.00576269,2600.3,2600.2,1.1745]
[1739319847025,3.2078,2600.9,2600.2,1.1745]
[1739319847322,3.2078,2600.9,2600.4,3.2078]
[1739319847629,3.2078,2601.2,2600.7,3.2078]
[1739319847823,3.2078,2601.2,2600.8,0.5696]
[1739319850424,4.39656143,2601.1,2600.8,0.5696]
[1739319850831,4.06305819,2600.9,2600.2,0.6049]
[1739319851027,7.27085819,2600.9,2600.3,0.5957]
[1739319851224,4.44364235,2600.8,2600.3,0.5957]
[1739319851922,4.06305819,2600.6,2600.3,0.5957]
[1739319853727,3.2078,2600.9,2600.4,3.2078]
[1739319854029,0.5689,2601.2,2600.4,3.2078]
[1739319855830,0.00576269,2601.3,2600.8,3.2078]
[1739319856129,0.00576269,2601.3,2600.9,0.5622]
[1739319856327,0.00576269,2601.3,2601.2,3.2078]
[1739319856729,1.789,2602.0,2601.2,3.97669]
[1739319856934,1.789,2602.0,2601.6,3.2078]
[1739319857634,1.789,2602.0,2601.7,0.5622]
[1739319858027,3.99730376,2601.9,2601.5,0.00576269]
[1739319859031,1.789,2602.0,2601.5,0.00576269]
[1739319860930,4.09479825,2601.9,2601.5,0.00576269]
[1739319863341,4.06305819,2601.8,2601.5,0.00576269]
[1739319863640,3.2078,2601.7,2601.5,0.00576269]
[1739319863934,4.42351625,2601.7,2601.5,0.00576269]
[1739319864135,3.2078,2602.0,2601.5,0.00576269]
[1739319864542,4.25976614,2601.9,2601.5,0.00576269]
[1739319865336,3.2078,2601.7,2601.5,0.00576269]
[1739319866238,4.10392605,2601.6,2601.5,0.00576269]
[1739319866544,4.65802605,2601.6,2601.5,0.00576269]
[1739319866845,0.5541,2601.6,2601.5,0.00576269]
[1739319867341,6.51632768,2601.6,2601.5,0.00576269]
[1739319867545,1.792,2601.6,2601.5,0.00576269]
[1739319869542,3.2078,2601.7,2601.5,0.00576269]
[1739319871635,4.122151,2601.6,2601.5,0.00576269]
[1739319871841,4.721351,2601.6,2601.5,0.00576269]
[1739319872043,4.06305819,2601.3,2601.2,40.8]
[1739319872744,4.63825819,2601.3,2601.2,40.8]
[1739319872934,4.63825819,2601.3,2600.5,3.7906]
[1739319872935,9.09068314,2601.3,2600.5,3.2078]
[1739319873138,3.2078,2601.1,2601.0,0.00576269]
[1739319873455,7.33701908,2601.1,2600.6,40.8]
[1739319873648,7.27085819,2600.7,2600.6,40.8]
[1739319873944,9.06185819,2600.7,2600.6,40.8]
[1739319874153,13.47656847,2600.7,2600.6,40.8]
[1739319875441,13.54277804,2600.7,2600.4,0.00576269]
[1739319875644,0.5987,2600.6,2600.4,0.00576269]
[1739319876051,4.39273146,2600.5,2600.4,0.00576269]
[1739319877448,0.5987,2600.6,2600.4,0.00576269]
[1739319878446,3.2078,2600.7,2600.4,0.00576269]
[1739319878746,0.57856269,2600.9,2600.4,0.00576269]
[1739319879144,4.13344494,2600.8,2600.4,0.00576269]
[1739319880550,0.5836,2600.7,2600.4,0.00576269]
[1739319881248,0.5836,2600.7,2600.5,40.8]
[1739319882948,4.13344494,2600.8,2600.5,40.8]
[1739319883145,0.57856269,2600.9,2600.5,40.8]
[1739319883346,0.00576269,2600.9,2600.5,41.3686]
[1739319883748,0.00576269,2600.9,2600.6,3.2078]
[1739319883942,0.00576269,2600.9,2600.7,0.5756]
[1739319884655,4.17329753,2600.8,2600.5,40.8]
[1739319885155,0.00576269,2600.9,2600.5,40.8]
[1739319885951,0.00576269,2600.9,2600.5,41.3701]
[1739319886154,0.00576269,2600.9,2600.6,0.5709]
[1739319888153,0.00576269,2600.9,2600.5,44.0078]
[1739319888549,0.00576269,2600.9,2600.5,40.8]
[1739319890959,3.2078,2600.7,2600.5,40.8]
[1739319892859,0.00576269,2600.9,2600.5,40.8]
[1739319893263,4.10179123,2600.8,2600.5,40.8]
[1739319894263,0.00576269,2600.9,2600.5,40.8]
[1739319897661,3.2078,2600.8,2600.5,40.8]
[1739319898057,7.2169241,2600.8,2600.5,40.8]
[1739319898861,0.5922,2600.7,2600.5,40.8]
[1739319902257,4.65525819,2600.7,2600.5,40.8]
[1739319902463,6.05479319,2600.6,2600.4,0.00576269]
[1739319902767,3.2078,2600.5,2600.4,0.00576269]
[1739319903056,3.2078,2600.5,2600.4,40.80576269]
[1739319903258,14.17870188,2600.5,2600.4,0.00576269]
[1739319903468,13.40958188,2600.5,2599.5,0.5583]
[1739319903657,4.06305819,2600.0,2599.6,40.8]
[1739319903860,5.85505819,2600.0,2599.6,40.8]
[1739319904055,6.43425819,2600.0,2599.6,40.8]
[1739319904356,4.06305819,2599.7,2599.6,40.8]
[1739319905463,4.06305819,2599.7,2599.4,0.00576269]
[1739319905659,3.2078,2599.8,2599.4,0.00576269]
[1739319905865,3.2078,2599.8,2599.5,40.8]
[1739319905866,1.789,2599.8,2599.5,40.8]
[1739319906158,3.2078,2600.2,2599.7,3.2078]
[1739319906465,3.2078,2600.2,2599.8,3.2078]
[1739319906663,3.2078,2600.6,2600.1,3.2078]
[1739319906862,3.2078,2600.6,2600.1,44.0078]
[1739319907166,0.00576269,2600.9,2600.1,44.0078]
[1739319907366,0.00576269,2600.9,2600.4,3.2078]
[1739319907566,0.00576269,2600.9,2600.5,1.2064]
[1739319907866,0.00576269,2600.9,2600.8,3.2078]
[1739319908471,0.00576269,2600.9,2600.8,44.0078]
[1739319909668,5.0028,2601.6,2600.8,50.0078]
[1739319909966,5.0028,2601.6,2601.2,3.2078]
[1739319910466,3.2078,2601.6,2601.2,3.2078]
[1739319911465,3.2078,2601.6,2601.2,3.7869]
[1739319912967,3.2078,2601.6,2601.2,4.3544]
[1739319913972,8.08935971,2601.5,2601.1,0.00576269]
[1739319915671,7.27085819,2601.2,2601.1,0.00576269]
[1739319915867,9.05785819,2601.2,2601.1,0.00576269]
[1739319916065,13.15838293,2601.2,2601.1,0.00576269]
[1739319918566,23.22953817,2601.2,2600.3,0.5978]
[1739319918771,23.22953817,2601.2,2600.0,0.5943]
[1739319918772,4.06305819,2600.7,2600.0,0.5943]
[1739319918967,4.06305819,2600.4,2600.1,40.8]
[1739319920365,3.2078,2600.2,2600.1,40.8]
[1739319920869,7.58873625,2600.2,2600.1,40.8]
[1739319921078,3.2078,2600.2,2600.1,40.8]
[1739319921679,3.2078,2600.5,2600.1,40.8]
[1739319921970,4.9928,2600.5,2600.1,40.8]
[1739319922176,4.06305819,2600.4,2600.1,40.8]
[1739319922378,8.08608717,2600.4,2600.1,40.8]
[1739319922880,5.84805819,2600.4,2600.1,40.8]
[1739319923478,1.785,2600.4,2600.1,40.8]
[1739319923781,1.785,2600.4,2600.2,0.6065]
[1739319924280,3.2078,2600.5,2600.2,0.6065]
[1739319924481,3.2078,2600.5,2600.3,40.8]
[1739319927379,4.06305819,2600.4,2600.3,40.8]
[1739319928383,8.75586942,2600.4,2600.3,40.8]
[1739319930283,4.65125819,2600.4,2600.3,40.8]
[1739319930582,8.99920642,2600.4,2600.3,40.8]
[1739319931183,9.59780642,2600.4,2600.3,40.8]
[1739319933484,12.80560642,2600.4,2600.3,40.8]
[1739319934283,8.14394823,2600.4,2600.3,40.8]
[1739319934988,12.20700642,2600.4,2600.3,40.8]
[1739319935185,19.0422766,2600.4,2600.0,0.00576269]
[1739319935389,7.27085819,2600.1,2600.0,0.00576269]
[1739319935683,7.27085819,2600.1,2599.3,0.5535]
[1739319935684,9.88020905,2600.1,2599.7,40.8]
[1739319935987,4.06305819,2599.8,2599.7,40.8]
[1739319936490,8.11536757,2599.8,2599.7,40.8]
[1739319936888,0.5656,2600.0,2599.7,40.8]